bitfinex/quotes_BTCUSD_20250102
["timestamp","ask_amount","ask_price","bid_price","bid_amount"]
[1735850064661,0.002,97603.0,97602.0,0.27778205]
[1735850066922,0.001,97603.0,97602.0,0.27778205]
[1735850067354,0.005,97603.0,97602.0,0.27778205]
[1735850069772,0.013,97603.0,97602.0,0.56146837]
[1735850071508,0.013,97603.0,97602.0,0.35748205]
[1735850071720,0.013,97603.0,97602.0,0.25922394]
[1735850072548,0.013,97603.0,97602.0,0.35748205]
[1735850073112,0.013,97603.0,97602.0,0.46146837]
[1735850073314,0.01289414,97603.0,97602.0,0.46146837]
[1735850077535,0.15,97636.0,97631.0,0.1]
[1735850077732,0.20485,97632.0,97631.0,0.1]
[1735850077939,0.15,97633.0,97630.0,0.1]
[1735850078149,0.204853,97631.0,97630.0,0.1]
[1735850079187,0.204853,97631.0,97630.0,0.101]
[1735850079783,0.204853,97631.0,97630.0,0.19925811]
[1735850080359,0.209853,97631.0,97630.0,0.19925811]
[1735850080557,0.209853,97631.0,97630.0,0.19825811]
[1735850080738,0.218853,97631.0,97630.0,0.19925811]
[1735850082277,0.218853,97631.0,97630.0,0.101]
[1735850082397,0.218853,97631.0,97630.0,0.19925811]
[1735850083259,0.218853,97631.0,97630.0,0.001]
[1735850085198,0.47283932,97631.0,97630.0,0.001]
[1735850086187,0.46783932,97631.0,97630.0,0.001]
[1735850086589,0.47383932,97631.0,97630.0,0.001]
[1735850087196,0.354863,97626.0,97625.0,0.1]
[1735850088596,0.368863,97626.0,97625.0,0.1]
[1735850089766,0.204876,97620.0,97619.0,0.1]
[1735850090354,0.204876,97620.0,97619.0,0.19825811]
[1735850090567,0.204876,97620.0,97619.0,0.1]
[1735850090768,0.204876,97620.0,97618.0,0.1]
[1735850090973,0.204878,97619.0,97616.0,0.1]
[1735850091134,0.25398632,97618.0,97615.0,0.00011559]
[1735850091340,0.204884,97616.0,97615.0,0.00011559]
[1735850091535,0.30887032,97616.0,97615.0,0.00011559]
[1735850092969,0.30987032,97616.0,97615.0,0.00011559]
[1735850093316,0.30887032,97616.0,97615.0,0.00011559]
[1735850093728,0.52877032,97616.0,97615.0,0.00011559]
[1735850093894,0.354911,97603.0,97602.0,0.07640835]
[1735850094095,0.53539732,97603.0,97602.0,0.07640835]
[1735850094325,0.55839732,97603.0,97602.0,0.07640835]
[1735850095526,0.55939732,97603.0,97602.0,0.07740835]
[1735850096099,0.56039732,97603.0,97602.0,0.07740835]
[1735850096631,0.57092528,97603.0,97602.0,0.07740835]
[1735850096838,0.57092528,97603.0,97602.0,0.07609977]
[1735850097037,0.54792528,97603.0,97602.0,0.07609977]
[1735850097153,0.57092528,97603.0,97602.0,0.07609977]
[1735850098322,0.56892528,97603.0,97602.0,0.07509977]
[1735850098729,0.56992528,97603.0,97602.0,0.07609977]
[1735850099244,0.57092528,97603.0,97602.0,0.07609977]
[1735850099480,0.56992528,97603.0,97602.0,0.07609977]
[1735850099946,0.54792528,97603.0,97602.0,0.07609977]
[1735850100152,0.47042528,97603.0,97602.0,0.07509977]
[1735850100375,0.47142528,97603.0,97602.0,0.07609977]
[1735850100784,0.47042528,97603.0,97602.0,0.07509977]
[1735850101202,0.47142528,97603.0,97602.0,0.07609977]
[1735850101410,0.36743896,97603.0,97602.0,0.07609977]
[1735850101620,0.36743896,97603.0,97602.0,0.17609977]
[1735850102363,0.47042528,97603.0,97602.0,0.07609977]
[1735850103298,0.46942528,97603.0,97602.0,0.07509977]
[1735850103505,0.46942528,97603.0,97602.0,0.07609977]
[1735850104004,0.46942528,97603.0,97602.0,0.07509977]
[1735850104338,0.47042528,97603.0,97602.0,0.08109977]
[1735850104540,0.46942528,97603.0,97602.0,0.07509977]
[1735850104746,0.47042528,97603.0,97602.0,0.08609977]
[1735850105382,0.47042528,97603.0,97602.0,0.08409977]
[1735850106010,0.49442528,97603.0,97602.0,0.09309977]
[1735850106227,0.57462528,97603.0,97602.0,0.09309977]
[1735850107256,0.57362528,97603.0,97602.0,0.08409977]
[1735850107463,0.57262528,97603.0,97602.0,7.7e-07]
[1735850107674,0.57362528,97603.0,97602.0,7.7e-07]
[1735850107857,0.59374058,97603.0,97602.0,7.7e-07]
[1735850108613,0.59474058,97603.0,97602.0,7.7e-07]
[1735850109047,0.354941,97589.0,97588.0,0.0001708]
[1735850109250,0.48192732,97589.0,97588.0,0.0001708]
[1735850110329,0.48292732,97589.0,97588.0,0.0001708]
[1735850110706,0.48392732,97589.0,97588.0,0.0001708]
[1735850113483,0.49442452,97589.0,97588.0,0.0001708]
[1735850114169,0.57042452,97589.0,97588.0,0.0001708]
[1735850115235,0.61882452,97589.0,97588.0,0.0001708]
[1735850115435,0.61882452,97589.0,97585.0,0.000171]
[1735850115436,0.377943,97588.0,97585.0,0.000171]
[1735850115637,0.27698632,97586.0,97585.0,0.000171]
[1735850115846,0.173,97585.0,97577.0,8.55e-05]
[1735850116061,0.354964,97578.0,97577.0,0.00020114]
[1735850116267,0.48195032,97578.0,97577.0,0.00020114]
[1735850116822,0.51210781,97578.0,97577.0,0.00020114]
[1735850117030,0.48195032,97578.0,97577.0,0.00020114]
[1735850117871,0.52634118,97578.0,97577.0,0.00020114]
[1735850118150,0.5046148,97578.0,97577.0,0.00020114]
[1735850118963,0.5821148,97578.0,97577.0,0.00020114]
[1735850119175,0.5821148,97578.0,97545.0,0.0799]
[1735850119176,0.354997,97562.0,97545.0,0.0799]
[1735850119391,0.56308332,97562.0,97537.0,0.1]
[1735850119822,0.56308332,97562.0,97534.0,7e-05]
[1735850120234,0.59324081,97562.0,97538.0,0.09825811]
[1735850120447,0.58335775,97562.0,97538.0,0.09825811]
[1735850120653,0.59402573,97562.0,97538.0,0.09825811]
[1735850120856,0.61837499,97562.0,97538.0,0.09825811]
[1735850121059,0.58435775,97562.0,97538.0,0.09825811]
[1735850121270,0.58435775,97562.0,97546.0,0.1]
[1735850121686,0.58535775,97562.0,97546.0,0.1]
[1735850122088,0.58535775,97562.0,97539.0,0.1]
[1735850122300,0.58535775,97562.0,97546.0,0.1]
[1735850122693,0.59576997,97562.0,97546.0,0.1]
[1735850123109,0.59576997,97562.0,97540.0,0.1]
[1735850123309,0.59576997,97562.0,97538.0,0.09825811]
[1735850123523,0.59576997,97562.0,97542.0,0.1]
[1735850124573,0.59576997,97562.0,97541.0,0.1001712]
[1735850124785,0.59576997,97562.0,97542.0,0.1]
[1735850126578,0.61181254,97562.0,97542.0,0.1]
[1735850128094,0.59576997,97562.0,97542.0,0.1]
[1735850128472,0.59576997,97562.0,97541.0,0.0001712]
[1735850128473,0.34166997,97562.0,97551.0,0.1]
[1735850128679,0.32139554,97562.0,97558.0,0.1]
[1735850129223,0.47139554,97562.0,97551.0,0.19825811]
[1735850129421,0.47139554,97562.0,97554.0,0.1]
[1735850129584,0.47139554,97562.0,97551.0,0.09825811]
[1735850129585,0.47139554,97562.0,97558.0,0.1]
[1735850129779,0.47039554,97562.0,97558.0,0.1]
[1735850130190,0.47139554,97562.0,97558.0,0.1]
[1735850130581,0.46939554,97562.0,97558.0,0.1]
[1735850130785,0.49339554,97562.0,97554.0,0.09825811]
[1735850130990,0.49439554,97562.0,97561.0,7.12e-05]
[1735850131189,0.49339554,97562.0,97561.0,7.12e-05]
[1735850131387,0.47139554,97562.0,97561.0,7.12e-05]
[1735850131617,0.47039554,97562.0,97561.0,7.12e-05]
[1735850132045,0.36740922,97562.0,97561.0,0.1090712]
[1735850132572,0.36640922,97562.0,97561.0,0.1000712]
[1735850132980,0.36540922,97562.0,97561.0,0.1000712]
[1735850133399,0.36640922,97562.0,97561.0,7.12e-05]
[1735850133608,0.49339554,97562.0,97561.0,7.12e-05]
[1735850133815,0.49439554,97562.0,97561.0,7.12e-05]
[1735850134407,0.49339554,97562.0,97561.0,7.12e-05]
[1735850134625,0.49239554,97562.0,97561.0,7.12e-05]
[1735850134825,0.49439554,97562.0,97561.0,7.12e-05]
[1735850135374,0.49339554,97562.0,97561.0,7.12e-05]
[1735850135576,0.49439554,97562.0,97561.0,7.12e-05]
[1735850136210,0.56781528,97562.0,97561.0,7.12e-05]
[1735850136385,0.00174189,97560.0,97532.0,0.1]
[1735850136589,0.378039,97542.0,97532.0,0.1]
[1735850136797,0.48202532,97542.0,97533.0,0.09825811]
[1735850137776,0.48202532,97542.0,97541.0,0.00066171]
[1735850138432,0.48302532,97542.0,97541.0,0.00066171]
[1735850139277,0.48202532,97542.0,97541.0,0.00066171]
[1735850139483,0.48302532,97542.0,97541.0,0.00066171]
[1735850139713,0.60204904,97542.0,97541.0,0.00066171]
[1735850139912,0.55362001,97542.0,97541.0,7.1e-07]
[1735850140115,0.59738985,97542.0,97541.0,7.1e-07]
[1735850140318,0.023,97531.0,97529.0,4.561e-05]
[1735850140440,0.48205132,97530.0,97529.0,6.1e-07]
[1735850140642,0.50717299,97530.0,97529.0,6.1e-07]
[1735850140909,0.20682089,97523.0,97522.0,2.1e-07]
[1735850141045,0.205115,97506.0,97490.0,0.0500855]
[1735850141259,0.48210132,97506.0,97490.0,0.0500855]
[1735850142281,0.5027501,97506.0,97490.0,0.0500855]
[1735850142556,0.5027501,97506.0,97505.0,0.00023247]
[1735850142818,0.49346411,97506.0,97505.0,0.00023247]
[1735850143882,0.49446411,97506.0,97505.0,0.00023247]
[1735850144068,0.49546411,97506.0,97505.0,0.00023247]
[1735850144872,0.47246411,97506.0,97505.0,0.00023247]
[1735850145699,0.32246411,97506.0,97505.0,0.00023247]
[1735850145840,0.003,97506.0,97505.0,0.19849058]
[1735850146704,0.002,97506.0,97505.0,0.19849058]
[1735850147262,0.001,97506.0,97505.0,0.19849058]
[1735850147457,0.01,97506.0,97505.0,0.19949058]
[1735850147616,0.009,97506.0,97505.0,0.19949058]
[1735850147819,0.018,97506.0,97505.0,0.19949058]
[1735850160786,0.018,97506.0,97505.0,0.10123247]
[1735850160963,0.223115,97506.0,97505.0,0.19949058]
[1735850161176,0.018,97506.0,97505.0,0.19949058]
[1735850161386,0.018,97506.0,97505.0,0.27779058]
[1735850162007,0.018,97506.0,97505.0,0.32359058]
[1735850163386,0.018,97506.0,97505.0,0.22359058]
[1735850163589,0.018,97506.0,97505.0,0.27779058]
[1735850163801,0.018,97506.0,97505.0,0.10123247]
[1735850164011,0.27198632,97506.0,97505.0,0.00123247]
[1735850164216,0.29498632,97506.0,97505.0,0.00123247]
[1735850164624,0.30564318,97506.0,97505.0,0.00123247]
[1735850165226,0.29664318,97506.0,97505.0,0.00023247]
[1735850165532,0.28864318,97506.0,97505.0,0.00923247]
[1735850165970,0.26664318,97506.0,97505.0,0.01423247]
[1735850166599,0.26564318,97506.0,97505.0,0.00913247]
[1735850166715,0.152,97506.0,97505.0,0.21239058]
[1735850167122,0.002,97506.0,97505.0,0.21239058]
[1735850167319,0.002,97506.0,97505.0,1.71239058]
[1735850167743,0.002,97506.0,97505.0,0.21239058]
[1735850168931,0.10598632,97506.0,97505.0,0.11413247]
[1735850169133,0.002,97506.0,97505.0,0.01413247]
[1735850169330,0.002,97506.0,97505.0,0.21239058]
[1735850169620,0.002,97506.0,97505.0,0.21247618]
[1735850171160,0.002,97506.0,97505.0,0.11411807]
[1735850171367,0.002,97506.0,97505.0,0.21237618]
[1735850173120,0.002,97506.0,97505.0,0.11411807]
[1735850173346,0.002,97506.0,97505.0,0.21237618]
[1735850173905,0.002,97506.0,97505.0,0.11411807]
[1735850174116,0.002,97506.0,97505.0,0.21237618]
[1735850174311,0.25598632,97506.0,97505.0,0.11411807]
[1735850174898,0.25598632,97506.0,97505.0,0.21237618]
[1735850175556,0.25598632,97506.0,97505.0,0.11411807]
[1735850175915,0.25598632,97506.0,97505.0,0.21237618]
[1735850176115,0.25598632,97506.0,97505.0,0.11411807]
[1735850176758,0.25598632,97506.0,97505.0,0.21237618]
[1735850176953,0.25598632,97506.0,97505.0,0.11411807]
[1735850177974,0.25598632,97506.0,97505.0,0.21237618]
[1735850178406,0.25598632,97506.0,97505.0,0.11411807]
[1735850178663,0.32608632,97506.0,97505.0,0.01411807]
[1735850181505,0.34626044,97506.0,97505.0,0.01411807]
[1735850181707,0.34643164,97506.0,97505.0,0.01411807]
[1735850185948,0.0021712,97506.0,97505.0,0.11411807]
[1735850186540,0.1521712,97506.0,97505.0,0.11411807]
[1735850187011,0.38245391,97506.0,97505.0,0.11411807]
[1735850188148,0.0021712,97506.0,97505.0,0.11411807]
[1735850188780,0.0021712,97506.0,97505.0,0.21237618]
[1735850191782,0.0021712,97506.0,97505.0,0.01411807]
[1735850191979,0.10615752,97506.0,97505.0,0.01411807]
[1735850192460,0.12915752,97506.0,97505.0,0.01411807]
[1735850193666,0.17495752,97506.0,97505.0,0.01411807]
[1735850196331,0.355117,97505.0,97504.0,5.7e-07]
[1735850196539,0.45910332,97505.0,97504.0,5.7e-07]
[1735850196753,0.355147,97491.0,97490.0,0.0500855]
[1735850196944,0.56243332,97491.0,97490.0,0.05023226]
[1735850198513,0.56343332,97491.0,97490.0,0.05523226]
[1735850198717,0.57511127,97491.0,97490.0,0.05523226]
[1735850199125,0.57411127,97491.0,97490.0,0.05523226]
[1735850200213,0.57411127,97491.0,97452.0,0.0495]
[1735850200214,0.35517,97480.0,97467.0,0.1]
[1735850200505,0.45915632,97480.0,97471.0,0.09825811]
[1735850200706,0.45915632,97480.0,97473.0,0.1]
[1735850201334,0.46015632,97480.0,97473.0,0.1]
[1735850201535,0.46115632,97480.0,97473.0,0.1]
[1735850202112,0.55309273,97480.0,97472.0,0.1]
[1735850203155,0.58631605,97480.0,97466.0,0.1]
[1735850203620,0.49437964,97480.0,97469.0,0.1]
[1735850204643,0.58631605,97480.0,97469.0,0.1]
[1735850205656,0.49437964,97480.0,97469.0,0.1]
[1735850206366,0.49437964,97480.0,97466.0,0.1]
[1735850207172,0.49437964,97480.0,97469.0,0.1]
[1735850207375,0.49437964,97480.0,97466.0,0.1]
[1735850208136,0.63211899,97480.0,97466.0,0.1]
[1735850208903,0.63211899,97480.0,97469.0,0.1]
[1735850209100,0.63211899,97480.0,97473.0,0.1]
[1735850209624,0.60911899,97480.0,97475.0,0.1]
[1735850210384,0.47137964,97480.0,97475.0,0.1]
[1735850211493,0.56320935,97480.0,97475.0,0.1]
[1735850211706,0.45922303,97480.0,97479.0,0.1000855]
[1735850212820,0.36739332,97480.0,97479.0,0.1000855]
[1735850213596,0.47137964,97480.0,97479.0,8.55e-05]
[1735850215031,0.49437964,97480.0,97479.0,8.55e-05]
[1735850215258,0.62187964,97480.0,97479.0,8.55e-05]
[1735850215649,0.62087964,97480.0,97479.0,8.55e-05]
[1735850215854,0.62187964,97480.0,97479.0,8.55e-05]
[1735850216522,0.62087964,97480.0,97479.0,8.55e-05]
[1735850217372,0.61987964,97480.0,97479.0,8.55e-05]
[1735850217580,0.62187964,97480.0,97479.0,8.55e-05]
[1735850217964,0.15,97435.0,97433.0,0.038521]
[1735850218327,0.173,97479.0,97407.0,8.56e-05]
[1735850218328,0.355288,97424.0,97407.0,8.56e-05]
[1735850218739,0.355288,97424.0,97417.0,0.0775]
[1735850219467,0.355288,97424.0,97423.0,0.0153405]
[1735850220139,0.356288,97424.0,97423.0,0.0153405]
[1735850220698,0.151,97424.0,97423.0,0.0153405]
[1735850221082,0.356288,97424.0,97423.0,0.0153405]
[1735850221288,0.001,97424.0,97423.0,0.0153405]
[1735850221728,0.002,97424.0,97423.0,0.0153405]
[1735850221920,0.002,97424.0,97423.0,1.5153405]
[1735850222611,0.001,97424.0,97423.0,1.5153405]
[1735850222859,0.01,97424.0,97423.0,1.5153405]
[1735850223035,0.01,97424.0,97423.0,0.0153405]
[1735850223618,0.009,97424.0,97423.0,1.5153405]
[1735850224061,0.018,97424.0,97423.0,1.5153405]
[1735850224788,0.018,97424.0,97423.0,0.0153405]
[1735850225359,0.27198632,97424.0,97423.0,0.0153405]
[1735850225566,0.26298632,97424.0,97423.0,0.0153405]
[1735850225880,0.168,97424.0,97423.0,0.0153405]
[1735850226453,0.159,97424.0,97423.0,0.0153405]
[1735850226728,0.16,97424.0,97423.0,0.0163405]
[1735850227317,0.15,97424.0,97423.0,0.0153405]
[1735850227520,0.159,97424.0,97423.0,0.0153405]
[1735850227726,0.168,97424.0,97423.0,0.0153405]
[1735850227901,0.26298632,97424.0,97423.0,0.0153405]
[1735850228103,0.27198632,97424.0,97423.0,0.0153405]
[1735850228920,0.27198632,97424.0,97423.0,0.0154262]
[1735850232004,0.168,97424.0,97423.0,0.0154262]
[1735850232205,0.29498632,97424.0,97423.0,0.0154262]
[1735850233315,0.42508632,97424.0,97423.0,0.0154262]
[1735850233965,0.41608632,97424.0,97423.0,0.0154262]
[1735850234348,0.42108632,97424.0,97423.0,0.0154262]
[1735850234523,0.41608632,97424.0,97423.0,0.0154262]
[1735850234875,0.40808632,97424.0,97423.0,0.0154262]
[1735850235078,0.40418632,97424.0,97423.0,0.0154262]
[1735850235324,0.40918632,97424.0,97423.0,0.0154262]
[1735850235539,0.25998632,97424.0,97423.0,0.0154262]
[1735850235692,0.25498632,97424.0,97423.0,0.0154262]
[1735850235897,0.25598632,97424.0,97423.0,0.0154262]
[1735850238509,0.10598632,97424.0,97423.0,0.0154262]
[1735850240248,0.25598632,97424.0,97423.0,0.0154262]
[1735850246046,0.152,97424.0,97423.0,0.0154262]
[1735850246268,0.002,97424.0,97423.0,0.0154262]
[1735850246469,0.002,97424.0,97423.0,0.1432262]
[1735850247061,0.001,97424.0,97423.0,0.1432262]
[1735850247262,0.1501714,97433.0,97423.0,0.1432262]
[1735850247469,0.004,97424.0,97423.0,0.1432262]
[1735850247623,0.009,97424.0,97423.0,0.1432262]
[1735850247819,0.005,97424.0,97423.0,0.1432262]
[1735850248049,0.009,97424.0,97423.0,0.1432262]
[1735850248260,0.0001714,97433.0,97423.0,0.1432262]
[1735850248462,0.0011714,97433.0,97424.0,0.205288]
[1735850248719,0.0011714,97433.0,97423.0,0.1432262]
[1735850248966,0.15,97431.0,97423.0,0.0154262]
[1735850249175,0.10398632,97430.0,97423.0,0.0154262]
[1735850249397,0.205284,97426.0,97423.0,0.0154262]
[1735850249813,0.009,97424.0,97423.0,0.0164262]
[1735850250109,0.205284,97426.0,97423.0,0.0154262]
[1735850250315,0.410568,97426.0,97423.0,0.0164262]
[1735850250547,0.410568,97426.0,97423.0,0.0154262]
[1735850250759,0.205284,97426.0,97423.0,0.0154262]
[1735850250904,0.009,97424.0,97423.0,0.0174262]
[1735850251110,0.009,97424.0,97423.0,0.0164262]
[1735850251316,0.01059012,97426.0,97423.0,0.0154262]
[1735850251659,0.003,97426.0,97423.0,0.0164262]
[1735850252256,0.16066613,97431.0,97423.0,0.0164262]
[1735850252556,0.205286,97425.0,97423.0,0.0174262]
[1735850253176,0.205286,97425.0,97423.0,0.0164262]
[1735850253344,0.009,97426.0,97423.0,0.0164262]
[1735850253549,0.009,97424.0,97423.0,0.0164262]
[1735850253917,0.009,97426.0,97424.0,0.0787]
[1735850254126,0.009,97425.0,97424.0,0.283988]
[1735850254383,0.15,97435.0,97424.0,0.0787]
[1735850254585,0.002,97431.0,97424.0,0.0787]
[1735850255003,0.152,97431.0,97424.0,0.0787]
[1735850255197,0.152,97431.0,97423.0,0.0154262]
[1735850255198,0.15,97429.0,97423.0,0.0154262]
[1735850255408,0.205281,97427.0,97423.0,0.0154262]
[1735850255809,0.009,97424.0,97423.0,0.0154262]
[1735850256195,0.410563,97427.0,97423.0,0.0154262]
[1735850256570,0.10398632,97426.0,97423.0,0.0154262]
[1735850256714,0.205286,97425.0,97423.0,0.0154262]
[1735850256909,0.30927232,97425.0,97423.0,0.0154262]
[1735850257115,0.009,97424.0,97423.0,0.0154262]
[1735850257527,0.25398632,97424.0,97423.0,0.0154262]
[1735850258557,0.25398632,97424.0,97423.0,0.0164262]
[1735850259105,0.25398632,97424.0,97423.0,0.0154262]
[1735850259510,0.25398632,97424.0,97423.0,0.0214262]
[1735850259511,0.25498632,97424.0,97423.0,0.0214262]
[1735850260355,0.25598632,97424.0,97423.0,0.0214262]
[1735850261536,0.33578632,97424.0,97423.0,0.0214262]
[1735850262370,0.33478632,97424.0,97423.0,0.0154262]
[1735850262959,0.33578632,97424.0,97423.0,0.0154262]
[1735850263165,0.33478632,97424.0,97423.0,0.0154262]
[1735850263394,0.33578632,97424.0,97423.0,0.0154262]
[1735850263590,0.25598632,97424.0,97423.0,0.0154262]
[1735850263821,0.25498632,97424.0,97423.0,0.0154262]
[1735850264321,0.25598632,97424.0,97423.0,0.0174262]
[1735850264686,0.25598632,97424.0,97423.0,0.0154262]
[1735850264881,0.25498632,97424.0,97423.0,0.0154262]
[1735850265084,0.25598632,97424.0,97423.0,0.0164262]
[1735850265292,0.25498632,97424.0,97423.0,0.0164262]
[1735850265489,0.25398632,97424.0,97423.0,0.0154262]
[1735850265828,0.25598632,97424.0,97423.0,0.0164262]
[1735850265972,0.25498632,97424.0,97423.0,0.0164262]
[1735850266792,0.25598632,97424.0,97423.0,0.0164262]
[1735850267253,0.25398632,97424.0,97423.0,0.0154262]
[1735850267453,0.33438632,97424.0,97423.0,0.0174262]
[1735850268001,0.33338632,97424.0,97423.0,0.0154262]
[1735850268413,0.33538632,97424.0,97423.0,0.0174262]
[1735850268789,0.33438632,97424.0,97423.0,0.0174262]
[1735850268965,0.33338632,97424.0,97423.0,0.0154262]
[1735850269198,0.33438632,97424.0,97423.0,0.0154262]
[1735850270333,0.33538632,97424.0,97423.0,0.0174262]
[1735850270788,0.33438632,97424.0,97423.0,0.0154262]
[1735850271192,0.33538632,97424.0,97423.0,0.0174262]
[1735850271776,0.25598632,97424.0,97423.0,0.0174262]
[1735850271986,0.25398632,97424.0,97423.0,0.0154262]
[1735850272161,0.002,97424.0,97423.0,0.0174262]
[1735850272982,0.001,97424.0,97423.0,0.0174262]
[1735850273415,0.002,97424.0,97423.0,0.0174262]
[1735850273545,0.09288305,97424.0,97423.0,0.0154262]
[1735850273943,0.24388305,97424.0,97423.0,0.0174262]
[1735850274371,0.44817105,97424.0,97423.0,0.0154262]
[1735850274575,0.356288,97424.0,97423.0,0.0154262]
[1735850274779,0.356288,97424.0,97423.0,0.0174262]
[1735850274979,0.357288,97424.0,97423.0,0.0254262]
[1735850275342,0.207288,97424.0,97423.0,0.0254262]
[1735850275534,0.002,97424.0,97423.0,0.0254262]
[1735850275939,0.002,97424.0,97423.0,0.2307162]
[1735850276355,0.002,97424.0,97423.0,0.0254262]
[1735850276760,0.001,97424.0,97423.0,0.0234262]
[1735850277022,0.001,97424.0,97423.0,0.2287162]
[1735850277345,0.004,97424.0,97423.0,0.0234262]
[1735850277843,0.15,97431.0,97423.0,0.2207162]
[1735850278046,0.205275,97430.0,97423.0,0.0154262]
[1735850278205,0.011,97424.0,97423.0,0.0164262]
[1735850278406,0.009,97424.0,97423.0,0.0164262]
[1735850278797,0.018,97424.0,97423.0,0.0174262]
[1735850278991,0.018,97424.0,97423.0,0.2227162]
[1735850279256,0.018,97424.0,97423.0,0.2992162]
[1735850279452,0.009,97424.0,97423.0,0.2982162]
[1735850279656,0.0001714,97433.0,97423.0,0.2972162]
[1735850279870,0.009,97431.0,97423.0,0.2982162]
[1735850280276,0.0001714,97433.0,97425.0,0.205286]
[1735850280696,0.0001714,97433.0,97423.0,0.0154262]
[1735850281116,0.018,97424.0,97423.0,0.0174262]
[1735850281326,0.009,97424.0,97423.0,0.0164262]
[1735850282468,0.0001714,97433.0,97423.0,0.0154262]
[1735850282669,0.0001714,97433.0,97430.0,0.205273]
[1735850282841,0.0091714,97433.0,97430.0,0.205273]
[1735850283051,0.0091714,97433.0,97430.0,0.410548]
[1735850283256,0.0001714,97433.0,97430.0,0.205273]
[1735850283654,0.0001714,97433.0,97432.0,0.205271]
[1735850284045,0.0001714,97433.0,97432.0,0.55675732]
[1735850284244,0.0001714,97433.0,97432.0,2.05675732]
[1735850284424,0.0091714,97433.0,97432.0,2.05675732]
[1735850286085,0.0091714,97433.0,97432.0,1.95775732]
[1735850286290,0.0091714,97433.0,97432.0,2.05875732]
[1735850286492,0.0181714,97433.0,97432.0,2.05875732]
[1735850286709,0.0091714,97433.0,97432.0,2.05775732]
[1735850286920,0.0181714,97433.0,97432.0,2.05875732]
[1735850287131,0.0181714,97433.0,97432.0,0.55875732]
[1735850287335,0.0181714,97433.0,97432.0,0.45875732]
[1735850289524,0.0181714,97433.0,97432.0,0.55875732]
[1735850289724,0.0181714,97433.0,97432.0,0.76065732]
[1735850290130,0.0181714,97433.0,97432.0,2.26065732]
[1735850290851,0.0181714,97433.0,97432.0,2.13765732]
[1735850291052,0.0181714,97433.0,97432.0,2.23765732]
[1735850291258,0.0181714,97433.0,97432.0,0.433671]
[1735850293625,0.0181714,97433.0,97432.0,0.386171]
[1735850294623,0.0181714,97433.0,97432.0,0.59015732]
[1735850295186,0.0181714,97433.0,97432.0,0.286171]
[1735850295590,0.0181714,97433.0,97432.0,0.386171]
[1735850297870,0.0181714,97433.0,97432.0,0.307271]
[1735850298076,0.0181714,97433.0,97432.0,0.207271]
[1735850299576,0.0181714,97433.0,97432.0,0.2073565]
[1735850303203,0.0181714,97433.0,97432.0,1.7073565]
[1735850307383,0.0181714,97433.0,97432.0,1.7073565]
[1735850308637,0.0181714,97433.0,97432.0,1.81134282]
[1735850308846,0.0181714,97433.0,97432.0,2.01134282]
[1735850309198,0.0181714,97433.0,97432.0,2.21334282]
[1735850310389,0.0181714,97433.0,97432.0,2.19034282]
[1735850314148,0.0181714,97433.0,97432.0,0.2073565]
[1735850315295,0.0171714,97433.0,97432.0,0.2073565]
[1735850315523,0.0171714,97433.0,97432.0,0.31134282]
[1735850315727,0.0171714,97433.0,97432.0,0.48914282]
[1735850316483,0.0171714,97433.0,97432.0,0.58914282]
[1735850317455,0.0171714,97433.0,97432.0,0.68914282]
[1735850317589,0.0171714,97433.0,97432.0,0.73834282]
[1735850317795,0.0171714,97433.0,97432.0,0.76134282]
[1735850318646,0.0171714,97433.0,97432.0,2.26134282]
[1735850321214,0.0171714,97433.0,97432.0,2.36944282]
[1735850322140,0.0171714,97433.0,97432.0,2.36844282]
[1735850322383,0.0824,97469.0,97465.0,0.205201]
[1735850323396,0.09188305,97472.0,97469.0,0.205191]
[1735850323694,0.0768,97477.0,97474.0,0.205182]
[1735850323899,0.07694648,97477.0,97472.0,0.205185]
[1735850325215,0.00014648,97477.0,97476.0,0.205178]
[1735850326006,0.00114648,97477.0,97476.0,0.205178]
[1735850326206,0.00014648,97477.0,97476.0,0.205178]
[1735850326450,0.00014648,97477.0,97476.0,0.41016432]
[1735850326451,0.00914648,97477.0,97476.0,0.41016432]
[1735850326783,0.01714648,97477.0,97476.0,0.53416432]
[1735850327277,0.00814648,97477.0,97476.0,0.53316432]
[1735850327478,0.01714648,97477.0,97476.0,0.53416432]
[1735850327634,0.01714648,97477.0,97476.0,2.08286432]
[1735850328511,0.00914648,97477.0,97476.0,2.08186432]
[1735850328625,0.00014648,97477.0,97476.0,2.08086432]
[1735850329073,0.01814648,97477.0,97476.0,2.08286432]
[1735850329272,0.00914648,97477.0,97476.0,2.09212398]
[1735850329473,0.00014648,97477.0,97476.0,2.09112398]
[1735850329676,0.00914648,97477.0,97476.0,2.09212398]
[1735850330365,0.01714648,97477.0,97476.0,2.09312398]
[1735850331246,0.01714648,97477.0,97476.0,1.92142398]
[1735850331462,0.01714648,97477.0,97476.0,0.52142398]
[1735850332612,0.01714648,97477.0,97476.0,0.42142398]
[1735850332826,0.01714648,97477.0,97476.0,0.52142398]
[1735850333830,0.01714648,97477.0,97476.0,0.54442398]
[1735850334162,0.01714648,97477.0,97476.0,2.04442398]
[1735850334364,0.01714648,97477.0,97476.0,2.12602398]
[1735850334563,4.8e-07,97477.0,97476.0,2.12602398]
[1735850337146,0.0001712,97506.0,97489.0,0.428151]
[1735850337360,0.0001712,97506.0,97489.0,0.88283732]
[1735850337574,0.0001712,97506.0,97489.0,0.95863732]
[1735850337792,0.0001712,97506.0,97489.0,2.45863732]
[1735850337994,0.0001712,97506.0,97489.0,2.60863732]
[1735850338624,0.0001712,97506.0,97489.0,2.71673732]
[1735850340602,0.0812,97503.0,97489.0,0.72250984]
[1735850340988,0.286322,97503.0,97489.0,0.01057252]
[1735850341191,0.0001712,97506.0,97478.0,0.297292]
[1735850341394,0.1263,97489.0,97478.0,0.09212]
[1735850341751,0.205153,97488.0,97478.0,0.09212]
[1735850341956,0.205153,97488.0,97479.0,0.205172]
[1735850342376,0.1263,97489.0,97479.0,0.205172]
[1735850342583,0.205153,97488.0,97479.0,0.205172]
[1735850342780,0.205153,97488.0,97475.0,0.205179]
[1735850342988,0.205161,97485.0,97478.0,0.001]
[1735850343357,0.410338,97481.0,97478.0,0.001]
[1735850343579,0.205172,97479.0,97478.0,0.001]
[1735850343806,0.45915832,97479.0,97478.0,0.001]
[1735850344214,0.45915832,97479.0,97478.0,0.002]
[1735850344419,0.45915832,97479.0,97478.0,0.001]
[1735850344898,0.205204,97464.0,97462.0,0.00014648]
[1735850345421,0.205201,97466.0,97462.0,0.00014648]